[Event "Early-Titled-Tuesday-Blitz-January-23-2024"]
[Site "Chess.com"]
[Date "2024.01.23"]
[Round "11"]
[White "Nekoo04"]
[Black "Mikhail_Golubev"]
[Result "1-0"]
[WhiteElo "2381"]
[BlackElo "2485"]
[TimeControl "180+1"]
[EndTime "10:08:22 PST"]
[Termination "Nekoo04 won on time"]

1. d4 {[%clk 0:02:45.7]} 1... Nf6 {[%clk 0:02:59.1]} 2. c4 {[%clk 0:02:41.7]}
2... d6 {[%clk 0:02:59.1]} 3. Nc3 {[%clk 0:02:39.9]} 3... g6 {[%clk 0:02:59.6]}
4. e4 {[%clk 0:02:40.1]} 4... Bg7 {[%clk 0:02:59.9]} 5. Nf3 {[%clk 0:02:40.8]}
5... O-O {[%clk 0:02:59.1]} 6. Be2 {[%clk 0:02:41.7]} 6... e5 {[%clk 0:02:59.2]}
7. d5 {[%clk 0:02:41.2]} 7... Qe8 {[%clk 0:02:58.1]} 8. Bg5 {[%clk 0:02:34.9]}
8... Nh5 {[%clk 0:02:57.5]} 9. g3 {[%clk 0:02:31]} 9... f5 {[%clk 0:02:56.8]}
10. exf5 {[%clk 0:02:17.1]} 10... gxf5 {[%clk 0:02:56.2]} 11. O-O {[%clk
0:01:50.4]} 11... f4 {[%clk 0:02:52.4]} 12. Nd2 {[%clk 0:01:29.8]} 12... Qg6
{[%clk 0:02:35.9]} 13. Nde4 {[%clk 0:01:19.2]} 13... Nf6 {[%clk 0:02:31]} 14.
Bxf6 {[%clk 0:01:06.7]} 14... Bxf6 {[%clk 0:02:31.9]} 15. Bh5 {[%clk 0:01:05.4]}
15... Qg7 {[%clk 0:02:25.9]} 16. c5 {[%clk 0:00:57.7]} 16... Bh3 {[%clk
0:02:19.8]} 17. Re1 {[%clk 0:00:55.8]} 17... Nd7 {[%clk 0:02:00.2]} 18. cxd6
{[%clk 0:00:49.9]} 18... cxd6 {[%clk 0:01:59.8]} 19. Nxd6 {[%clk 0:00:50.4]}
19... fxg3 {[%clk 0:01:33.2]} 20. hxg3 {[%clk 0:00:48.3]} 20... Bh4 {[%clk
0:01:24.1]} 21. Nce4 {[%clk 0:00:33]} 21... Nf6 {[%clk 0:01:17.9]} 22. Kh2
{[%clk 0:00:24.3]} 22... Nxe4 {[%clk 0:01:02]} 23. Nxe4 {[%clk 0:00:20.6]} 23...
Bf5 {[%clk 0:00:59]} 24. Nc5 {[%clk 0:00:05.4]} 24... Bc8 {[%clk 0:00:22.2]} 25.
Qe2 {[%clk 0:00:04.7]} 25... Be7 {[%clk 0:00:16.1]} 26. Ne6 {[%clk 0:00:03.5]}
26... Bxe6 {[%clk 0:00:16.1]} 27. dxe6 {[%clk 0:00:04.4]} 27... Rad8 {[%clk
0:00:15.1]} 28. Rad1 {[%clk 0:00:03.9]} 28... Rd4 {[%clk 0:00:15.4]} 29. Rxd4
{[%clk 0:00:03.4]} 29... exd4 {[%clk 0:00:15.4]} 30. Kg2 {[%clk 0:00:04.3]}
30... Bd6 {[%clk 0:00:15.4]} 31. Bf3 {[%clk 0:00:04.4]} 31... Qf6 {[%clk
0:00:14.4]} 32. Bxb7 {[%clk 0:00:04.3]} 32... d3 {[%clk 0:00:14.6]} 33. Qf3
{[%clk 0:00:04.1]} 33... Qxb2 {[%clk 0:00:12.6]} 34. Qg4+ {[%clk 0:00:03.5]}
34... Kh8 {[%clk 0:00:12.4]} 35. e7 {[%clk 0:00:03.4]} 35... Rxf2+ {[%clk
0:00:10.8]} 36. Kg1 {[%clk 0:00:03.4]} 36... Bc5 {[%clk 0:00:09]} 37. e8=Q+
{[%clk 0:00:03.3]} 37... Rf8+ {[%clk 0:00:08.8]} 38. Kh1 {[%clk 0:00:03.9]}
38... Qxb7+ {[%clk 0:00:08.8]} 39. Qge4 {[%clk 0:00:03.3]} 39... Rxe8 {[%clk
0:00:07.9]} 40. Qxb7 {[%clk 0:00:04.2]} 40... Rxe1+ {[%clk 0:00:07.8]} 41. Kg2
{[%clk 0:00:05.1]} 41... d2 {[%clk 0:00:06.3]} 42. Qc8+ {[%clk 0:00:05.4]} 42...
Kg7 {[%clk 0:00:06.7]} 43. Qd7+ {[%clk 0:00:06.1]} 43... Kg6 {[%clk 0:00:05.9]}
44. Qxd2 {[%clk 0:00:06.6]} 44... Re5 {[%clk 0:00:05.4]} 45. Qd3+ {[%clk
0:00:06.5]} 45... Kf6 {[%clk 0:00:04.3]} 46. Qxh7 {[%clk 0:00:06.3]} 46... Bb6
{[%clk 0:00:04.4]} 47. Qh6+ {[%clk 0:00:06]} 47... Ke7 {[%clk 0:00:04]} 48. Qg7+
{[%clk 0:00:06.3]} 48... Kd6 {[%clk 0:00:03.4]} 49. g4 {[%clk 0:00:06.6]} 49...
Ra5 {[%clk 0:00:03.2]} 50. Qf7 {[%clk 0:00:06]} 50... Ra3 {[%clk 0:00:02.6]} 51.
g5 {[%clk 0:00:05.8]} 51... Re3 {[%clk 0:00:01.7]} 52. g6 {[%clk 0:00:06]} 52...
Re2+ {[%clk 0:00:02.1]} 53. Kh3 {[%clk 0:00:04.5]} 1-0

[Event "Early-Titled-Tuesday-Blitz-January-23-2024"]
[Site "Chess.com"]
[Date "2024.01.23"]
[Round "11"]
[White "GeorgiosSouleidis"]
[Black "Zq1"]
[Result "1-0"]
[WhiteElo "2636"]
[BlackElo "2508"]
[TimeControl "180+1"]
[EndTime "10:08:30 PST"]
[Termination "GeorgiosSouleidis won on time"]

1. e4 {[%clk 0:03:00.9]} 1... c5 {[%clk 0:02:58]} 2. Be2 {[%clk 0:03:00.8]} 2...
Nc6 {[%clk 0:02:55.3]} 3. d3 {[%clk 0:03:01.3]} 3... e5 {[%clk 0:02:52.9]} 4. f4
{[%clk 0:03:01.4]} 4... d5 {[%clk 0:02:47]} 5. exd5 {[%clk 0:02:58.7]} 5... Qxd5
{[%clk 0:02:44.1]} 6. Nf3 {[%clk 0:02:58.7]} 6... exf4 {[%clk 0:02:38.2]} 7.
Bxf4 {[%clk 0:02:56.8]} 7... Nf6 {[%clk 0:02:36.4]} 8. Nc3 {[%clk 0:02:55.4]}
8... Qd8 {[%clk 0:02:26.5]} 9. O-O {[%clk 0:02:48.7]} 9... Be7 {[%clk
0:02:25.9]} 10. Qd2 {[%clk 0:02:42.9]} 10... O-O {[%clk 0:02:24.3]} 11. Rae1
{[%clk 0:02:38.2]} 11... Nd4 {[%clk 0:02:21]} 12. Bd1 {[%clk 0:02:29]} 12... Be6
{[%clk 0:02:15.9]} 13. Kh1 {[%clk 0:02:22.6]} 13... Qd7 {[%clk 0:02:13.8]} 14.
Ne5 {[%clk 0:02:19.9]} 14... Qc8 {[%clk 0:02:05.1]} 15. Ne4 {[%clk 0:02:16.2]}
15... Nxe4 {[%clk 0:01:57.6]} 16. Rxe4 {[%clk 0:02:17.1]} 16... Bd5 {[%clk
0:01:50.6]} 17. Ree1 {[%clk 0:01:58.7]} 17... Bd6 {[%clk 0:01:37.4]} 18. c3
{[%clk 0:01:52.4]} 18... Ne6 {[%clk 0:01:16.7]} 19. Bg3 {[%clk 0:01:52.6]} 19...
f6 {[%clk 0:01:06.2]} 20. Ng6 {[%clk 0:01:24.4]} 20... hxg6 {[%clk 0:01:05.3]}
21. Bxd6 {[%clk 0:01:24.3]} 21... Rf7 {[%clk 0:00:58.2]} 22. Qe3 {[%clk
0:01:04.8]} 22... Qc6 {[%clk 0:00:45.2]} 23. Bf3 {[%clk 0:00:46]} 23... Qxd6
{[%clk 0:00:38.3]} 24. Bxd5 {[%clk 0:00:46]} 24... Qxd5 {[%clk 0:00:38.2]} 25.
Qxe6 {[%clk 0:00:46.3]} 25... Qxd3 {[%clk 0:00:37.1]} 26. Rd1 {[%clk 0:00:43.2]}
26... Qb5 {[%clk 0:00:35.6]} 27. c4 {[%clk 0:00:41.8]} 27... Qe8 {[%clk
0:00:32.9]} 28. Qd5 {[%clk 0:00:42]} 28... Rc8 {[%clk 0:00:27]} 29. Rfe1 {[%clk
0:00:42.2]} 29... Qc6 {[%clk 0:00:26.5]} 30. Qd3 {[%clk 0:00:36]} 30... f5
{[%clk 0:00:23]} 31. Qg3 {[%clk 0:00:35.2]} 31... Qf6 {[%clk 0:00:19.4]} 32. b3
{[%clk 0:00:31.7]} 32... f4 {[%clk 0:00:19]} 33. Qg4 {[%clk 0:00:32.2]} 33...
Rcf8 {[%clk 0:00:17.8]} 34. Rf1 {[%clk 0:00:31.1]} 34... Qf5 {[%clk 0:00:17.7]}
35. Qf3 {[%clk 0:00:27.2]} 35... g5 {[%clk 0:00:17.4]} 36. Rd5 {[%clk
0:00:27.4]} 36... g4 {[%clk 0:00:14.9]} 37. Rxf5 {[%clk 0:00:19.8]} 37... gxf3
{[%clk 0:00:15.1]} 38. Rxc5 {[%clk 0:00:19.2]} 38... fxg2+ {[%clk 0:00:14.1]}
39. Kxg2 {[%clk 0:00:20.1]} 39... Rf5 {[%clk 0:00:13.1]} 40. Rxf5 {[%clk
0:00:19.5]} 40... Rxf5 {[%clk 0:00:12.4]} 41. Kf3 {[%clk 0:00:19.7]} 41... g5
{[%clk 0:00:11.2]} 42. Kg4 {[%clk 0:00:19.6]} 42... Re5 {[%clk 0:00:10.9]} 43.
Rd1 {[%clk 0:00:19.8]} 43... Kf7 {[%clk 0:00:08.5]} 44. Rd7+ {[%clk 0:00:19.5]}
44... Re7 {[%clk 0:00:08.6]} 45. Rd5 {[%clk 0:00:16]} 45... Re2 {[%clk
0:00:07.6]} 46. Kxg5 {[%clk 0:00:04.2]} 46... Rxh2 {[%clk 0:00:06.5]} 47. Kxf4
{[%clk 0:00:04]} 47... Rxa2 {[%clk 0:00:05.7]} 48. Rd7+ {[%clk 0:00:04.2]} 48...
Ke6 {[%clk 0:00:06.1]} 49. Rxb7 {[%clk 0:00:05.1]} 49... Kd6 {[%clk 0:00:06.1]}
50. Ke4 {[%clk 0:00:05]} 50... Kc5 {[%clk 0:00:06]} 51. Rb5+ {[%clk 0:00:05]}
51... Kc6 {[%clk 0:00:05.9]} 52. Kd4 {[%clk 0:00:05.9]} 52... a5 {[%clk
0:00:05.5]} 53. Kc3 {[%clk 0:00:05.7]} 53... a4 {[%clk 0:00:05.4]} 54. b4 {[%clk
0:00:05.3]} 54... Ra3+ {[%clk 0:00:04.8]} 55. Kd4 {[%clk 0:00:05.7]} 55... Rb3
{[%clk 0:00:04.4]} 56. Rb8 {[%clk 0:00:03]} 56... a3 {[%clk 0:00:03.6]} 57. b5+
{[%clk 0:00:02.4]} 57... Kc7 {[%clk 0:00:02.9]} 58. Ra8 {[%clk 0:00:03]} 58...
Rh3 {[%clk 0:00:01.8]} 59. Ra7+ {[%clk 0:00:02.8]} 1-0

[Event "Early-Titled-Tuesday-Blitz-January-23-2024"]
[Site "Chess.com"]
[Date "2024.01.23"]
[Round "11"]
[White "Grischuk"]
[Black "ilqar_74"]
[Result "1-0"]
[WhiteElo "3075"]
[BlackElo "2902"]
[TimeControl "180+1"]
[EndTime "10:08:32 PST"]
[Termination "Grischuk won by resignation"]

1. d4 {[%clk 0:03:00.9]} 1... Nf6 {[%clk 0:02:59.8]} 2. c4 {[%clk 0:03:00.9]}
2... e6 {[%clk 0:02:59.3]} 3. Bg5 {[%clk 0:03:00.5]} 3... d5 {[%clk 0:02:59.2]}
4. e3 {[%clk 0:03:00.1]} 4... Bb4+ {[%clk 0:02:58.5]} 5. Nc3 {[%clk 0:02:49.8]}
5... h6 {[%clk 0:02:58.9]} 6. Bh4 {[%clk 0:02:47]} 6... g5 {[%clk 0:02:58.7]} 7.
Bg3 {[%clk 0:02:47.1]} 7... Ne4 {[%clk 0:02:59.3]} 8. Qc2 {[%clk 0:02:34.6]}
8... h5 {[%clk 0:02:59.2]} 9. f3 {[%clk 0:02:22.1]} 9... Nxg3 {[%clk 0:02:58.4]}
10. hxg3 {[%clk 0:02:23]} 10... c6 {[%clk 0:02:55.5]} 11. O-O-O {[%clk
0:02:20.6]} 11... Nd7 {[%clk 0:02:54.2]} 12. Kb1 {[%clk 0:02:17.1]} 12... Nf6
{[%clk 0:02:52.1]} 13. Nh3 {[%clk 0:02:13.6]} 13... g4 {[%clk 0:02:46.8]} 14.
Ng5 {[%clk 0:02:07.8]} 14... Bd7 {[%clk 0:02:42.5]} 15. a3 {[%clk 0:01:57.4]}
15... Bxc3 {[%clk 0:02:14.7]} 16. Qxc3 {[%clk 0:01:58.3]} 16... Ng8 {[%clk
0:02:14.9]} 17. f4 {[%clk 0:01:07.1]} 17... f6 {[%clk 0:02:11.8]} 18. Nxe6
{[%clk 0:01:04.2]} 18... Bxe6 {[%clk 0:02:10.7]} 19. e4 {[%clk 0:01:05.1]} 19...
Ne7 {[%clk 0:02:04.3]} 20. f5 {[%clk 0:00:55.8]} 20... Bf7 {[%clk 0:02:00.1]}
21. cxd5 {[%clk 0:00:55.6]} 21... cxd5 {[%clk 0:01:59.6]} 22. e5 {[%clk
0:00:56]} 22... Nxf5 {[%clk 0:01:52.2]} 23. Bb5+ {[%clk 0:00:55.5]} 23... Kf8
{[%clk 0:01:50]} 24. Rhf1 {[%clk 0:00:52.9]} 24... Bg6 {[%clk 0:01:48.4]} 25.
Bd3 {[%clk 0:00:50.3]} 25... Qd7 {[%clk 0:01:23.1]} 26. Rde1 {[%clk 0:00:48]}
26... Re8 {[%clk 0:01:15]} 27. Qc2 {[%clk 0:00:40.2]} 27... Rc8 {[%clk
0:00:52.6]} 28. Qf2 {[%clk 0:00:34.2]} 28... Qh7 {[%clk 0:00:32.7]} 29. Bxf5
{[%clk 0:00:30.1]} 29... Bxf5+ {[%clk 0:00:33]} 30. Qxf5 {[%clk 0:00:30.6]}
30... Qxf5+ {[%clk 0:00:33.5]} 31. Rxf5 {[%clk 0:00:31.1]} 31... Rc6 {[%clk
0:00:32.6]} 32. exf6 {[%clk 0:00:19.3]} 32... Kf7 {[%clk 0:00:29.1]} 33. Re7+
{[%clk 0:00:17.2]} 33... Kg6 {[%clk 0:00:28.9]} 34. Rxd5 {[%clk 0:00:18.1]}
34... Rxf6 {[%clk 0:00:27.7]} 35. Rxb7 {[%clk 0:00:17.6]} 35... Re8 {[%clk
0:00:27.5]} 36. Rbb5 {[%clk 0:00:11.7]} 36... Re1+ {[%clk 0:00:24.6]} 37. Ka2
{[%clk 0:00:11.3]} 37... a6 {[%clk 0:00:18.6]} 38. Rg5+ {[%clk 0:00:11]} 38...
Kf7 {[%clk 0:00:18.7]} 39. Rb7+ {[%clk 0:00:09.8]} 39... Ke6 {[%clk 0:00:18.8]}
40. Rxh5 {[%clk 0:00:08.2]} 40... Re2 {[%clk 0:00:16.5]} 41. Rg5 {[%clk
0:00:04.8]} 41... Rxg2 {[%clk 0:00:14]} 42. Rb6+ {[%clk 0:00:04.7]} 42... Kf7
{[%clk 0:00:14]} 43. Rxf6+ {[%clk 0:00:04.6]} 43... Kxf6 {[%clk 0:00:14.9]} 44.
Rxg4 {[%clk 0:00:05.4]} 44... Rd2 {[%clk 0:00:15.5]} 45. Re4 {[%clk 0:00:04.7]}
45... Kf5 {[%clk 0:00:15.8]} 46. Re5+ {[%clk 0:00:05.3]} 46... Kf6 {[%clk
0:00:16.4]} 47. Ra5 {[%clk 0:00:05.8]} 47... Rxd4 {[%clk 0:00:16.4]} 48. Rxa6+
{[%clk 0:00:06.3]} 48... Kf5 {[%clk 0:00:16.7]} 49. Rc6 {[%clk 0:00:06.8]} 49...
Rd3 {[%clk 0:00:16.9]} 50. Rc3 {[%clk 0:00:07.7]} 50... Rd1 {[%clk 0:00:16.8]}
51. a4 {[%clk 0:00:07.7]} 51... Ke4 {[%clk 0:00:17.5]} 52. Kb3 {[%clk
0:00:07.5]} 52... Rd8 {[%clk 0:00:18]} 53. Kb4 {[%clk 0:00:07.1]} 53... Kd4
{[%clk 0:00:18.3]} 54. Rc4+ {[%clk 0:00:06.1]} 54... Kd5 {[%clk 0:00:18]} 55. b3
{[%clk 0:00:07]} 55... Rb8+ {[%clk 0:00:18]} 56. Ka3 {[%clk 0:00:07.3]} 56...
Rf8 {[%clk 0:00:18.9]} 57. g4 {[%clk 0:00:07.4]} 57... Rf1 {[%clk 0:00:19.3]}
58. Kb4 {[%clk 0:00:07.3]} 58... Ra1 {[%clk 0:00:18.6]} 59. a5 {[%clk
0:00:07.5]} 59... Kd6 {[%clk 0:00:19.1]} 60. Kb5 {[%clk 0:00:07.7]} 60... Kd5
{[%clk 0:00:18.3]} 61. b4 {[%clk 0:00:07.2]} 61... Rf1 {[%clk 0:00:18.9]} 62.
Rc5+ {[%clk 0:00:07.8]} 62... Kd6 {[%clk 0:00:18.8]} 63. g5 {[%clk 0:00:08.7]}
63... Rf8 {[%clk 0:00:19.1]} 64. a6 {[%clk 0:00:08.2]} 64... Rb8+ {[%clk
0:00:19.5]} 65. Ka5 {[%clk 0:00:08.7]} 1-0

[Event "Early-Titled-Tuesday-Blitz-January-23-2024"]
[Site "Chess.com"]
[Date "2024.01.23"]
[Round "11"]
[White "toninhojit"]
[Black "koncheto"]
[Result "1-0"]
[WhiteElo "2477"]
[BlackElo "2547"]
[TimeControl "180+1"]
[EndTime "10:08:34 PST"]
[Termination "toninhojit won on time"]

1. e4 {[%clk 0:03:00.9]} 1... e5 {[%clk 0:02:59.2]} 2. Nf3 {[%clk 0:03:00.6]}
2... Nf6 {[%clk 0:02:59.5]} 3. Nc3 {[%clk 0:03:00.3]} 3... Nc6 {[%clk
0:02:59.9]} 4. Bb5 {[%clk 0:02:59.8]} 4... Bc5 {[%clk 0:02:59.8]} 5. O-O {[%clk
0:02:57.8]} 5... d6 {[%clk 0:02:59.2]} 6. h3 {[%clk 0:02:56.1]} 6... O-O {[%clk
0:02:58.8]} 7. d3 {[%clk 0:02:56.2]} 7... h6 {[%clk 0:02:58.6]} 8. Be3 {[%clk
0:02:55.7]} 8... Bb6 {[%clk 0:02:53.6]} 9. a4 {[%clk 0:02:39.9]} 9... Ne7 {[%clk
0:02:37.5]} 10. a5 {[%clk 0:02:36.9]} 10... Bxe3 {[%clk 0:02:36.8]} 11. fxe3
{[%clk 0:02:37.8]} 11... c6 {[%clk 0:02:37.3]} 12. Ba4 {[%clk 0:02:37.5]} 12...
Ng6 {[%clk 0:02:38.2]} 13. Qe1 {[%clk 0:02:35.3]} 13... d5 {[%clk 0:02:34]} 14.
a6 {[%clk 0:02:22.8]} 14... b5 {[%clk 0:02:26.9]} 15. Bb3 {[%clk 0:02:21.7]}
15... dxe4 {[%clk 0:02:27.3]} 16. Nxe4 {[%clk 0:02:20.2]} 16... Nxe4 {[%clk
0:02:27.6]} 17. dxe4 {[%clk 0:02:21.1]} 17... Qb6 {[%clk 0:02:23.6]} 18. Kh1
{[%clk 0:02:14.9]} 18... c5 {[%clk 0:02:22.3]} 19. Bd5 {[%clk 0:02:13.8]} 19...
Rb8 {[%clk 0:02:20.8]} 20. Qg3 {[%clk 0:02:14.5]} 20... Be6 {[%clk 0:02:12.6]}
21. Nxe5 {[%clk 0:02:05.8]} 21... Bxd5 {[%clk 0:01:42.1]} 22. Nxg6 {[%clk
0:02:05]} 22... Qxg6 {[%clk 0:01:36.8]} 23. Qxg6 {[%clk 0:02:04.4]} 23... fxg6
{[%clk 0:01:37.7]} 24. exd5 {[%clk 0:02:05.2]} 24... Rfe8 {[%clk 0:01:31.3]} 25.
Rf3 {[%clk 0:01:56.1]} 25... Re5 {[%clk 0:01:29.8]} 26. Rd1 {[%clk 0:01:52.8]}
26... Rd8 {[%clk 0:01:25.2]} 27. d6 {[%clk 0:01:31.5]} 27... Re6 {[%clk
0:01:24.5]} 28. d7 {[%clk 0:01:32.1]} 28... Re7 {[%clk 0:01:24.6]} 29. Rd5
{[%clk 0:01:26.5]} 29... Rdxd7 {[%clk 0:01:10.3]} 30. Rxc5 {[%clk 0:01:26.9]}
30... Rc7 {[%clk 0:01:10.9]} 31. Rxb5 {[%clk 0:01:18.1]} 31... Rxc2 {[%clk
0:01:11]} 32. b4 {[%clk 0:00:58.1]} 32... Rc6 {[%clk 0:01:07.7]} 33. Rb8+ {[%clk
0:00:57.3]} 33... Kh7 {[%clk 0:01:06.8]} 34. b5 {[%clk 0:00:57.9]} 34... Rc3
{[%clk 0:01:04]} 35. Rff8 {[%clk 0:00:56.8]} 35... g5 {[%clk 0:01:01]} 36. Rb7
{[%clk 0:00:55.5]} 36... Rexe3 {[%clk 0:00:42.3]} 37. Rff7 {[%clk 0:00:54.5]}
37... Kg6 {[%clk 0:00:42.6]} 38. Rxg7+ {[%clk 0:00:54.2]} 38... Kh5 {[%clk
0:00:43.2]} 39. Rge7 {[%clk 0:00:45.4]} 39... Rxe7 {[%clk 0:00:25.5]} 40. Rxe7
{[%clk 0:00:46.3]} 40... Rb3 {[%clk 0:00:26.4]} 41. Rb7 {[%clk 0:00:44.3]} 41...
Kg6 {[%clk 0:00:23.3]} 42. Kg1 {[%clk 0:00:39]} 42... h5 {[%clk 0:00:22.1]} 43.
Kf2 {[%clk 0:00:38.7]} 43... Kf5 {[%clk 0:00:15.5]} 44. b6 {[%clk 0:00:38.3]}
44... axb6 {[%clk 0:00:14.5]} 45. a7 {[%clk 0:00:33.4]} 45... Ra3 {[%clk
0:00:13.6]} 46. Rf7+ {[%clk 0:00:28.5]} 46... Ke6 {[%clk 0:00:10.7]} 47. Rg7
{[%clk 0:00:28.3]} 47... Kf6 {[%clk 0:00:10.6]} 48. Rb7 {[%clk 0:00:28]} 48...
Ke5 {[%clk 0:00:09.9]} 49. Rh7 {[%clk 0:00:18.6]} 49... h4 {[%clk 0:00:09]} 50.
Rg7 {[%clk 0:00:17.8]} 50... Kf4 {[%clk 0:00:06.2]} 51. Rf7+ {[%clk 0:00:17.8]}
51... Ke4 {[%clk 0:00:06.3]} 52. Ke2 {[%clk 0:00:14.5]} 52... Ra2+ {[%clk
0:00:05.3]} 53. Kd1 {[%clk 0:00:15.1]} 53... b5 {[%clk 0:00:04.7]} 54. Kc1
{[%clk 0:00:15.5]} 54... b4 {[%clk 0:00:02.4]} 55. Kb1 {[%clk 0:00:15.9]} 55...
b3 {[%clk 0:00:03]} 56. Rb7 {[%clk 0:00:08.5]} 56... Kf4 {[%clk 0:00:02.2]} 57.
Rb4+ {[%clk 0:00:08.1]} 57... Kf5 {[%clk 0:00:02]} 58. Rb5+ {[%clk 0:00:08.6]}
58... Kf4 {[%clk 0:00:01.8]} 59. Rb4+ {[%clk 0:00:08.1]} 59... Ke5 {[%clk
0:00:02.3]} 60. Rb7 {[%clk 0:00:09]} 1-0

[Event "Early-Titled-Tuesday-Blitz-January-23-2024"]
[Site "Chess.com"]
[Date "2024.01.23"]
[Round "11"]
[White "flomarechot"]
[Black "InitiatingASC"]
[Result "1/2-1/2"]
[WhiteElo "2295"]
[BlackElo "2418"]
[TimeControl "180+1"]
[EndTime "10:08:35 PST"]
[Termination "Game drawn by repetition"]

1. Nf3 {[%clk 0:03:00.9]} 1... Nf6 {[%clk 0:02:58.3]} 2. b3 {[%clk 0:03:01]}
2... b6 {[%clk 0:02:57.8]} 3. Bb2 {[%clk 0:03:01.2]} 3... Bb7 {[%clk 0:02:58.5]}
4. e3 {[%clk 0:03:01.6]} 4... e6 {[%clk 0:02:58.4]} 5. d4 {[%clk 0:03:01.6]}
5... c5 {[%clk 0:02:58.3]} 6. Be2 {[%clk 0:03:01.1]} 6... cxd4 {[%clk
0:02:58.7]} 7. Bxd4 {[%clk 0:03:00.9]} 7... Be7 {[%clk 0:02:58.8]} 8. O-O {[%clk
0:03:00.8]} 8... O-O {[%clk 0:02:58.6]} 9. c4 {[%clk 0:03:00.6]} 9... d6 {[%clk
0:02:59]} 10. Bb2 {[%clk 0:03:00.2]} 10... Nbd7 {[%clk 0:02:59.3]} 11. Nc3
{[%clk 0:03:00.7]} 11... a6 {[%clk 0:02:59]} 12. Nd4 {[%clk 0:02:56.3]} 12...
Qc7 {[%clk 0:02:55.5]} 13. Bf3 {[%clk 0:02:56.1]} 13... Rac8 {[%clk 0:02:52.9]}
14. Bxb7 {[%clk 0:02:55.7]} 14... Qxb7 {[%clk 0:02:53.8]} 15. Qf3 {[%clk
0:02:55.8]} 15... Qxf3 {[%clk 0:02:48.9]} 16. Nxf3 {[%clk 0:02:56]} 16... Nc5
{[%clk 0:02:47.7]} 17. Rfd1 {[%clk 0:02:51.3]} 17... Rfd8 {[%clk 0:02:46.8]} 18.
Kf1 {[%clk 0:02:40.4]} 18... Nfe4 {[%clk 0:02:29.2]} 19. Nxe4 {[%clk 0:02:38.2]}
19... Nxe4 {[%clk 0:02:29.3]} 20. Nd2 {[%clk 0:02:16.9]} 20... Bf6 {[%clk
0:02:24.7]} 21. Bxf6 {[%clk 0:02:15.3]} 21... Nxf6 {[%clk 0:02:23.2]} 22. a4
{[%clk 0:02:11.8]} 22... d5 {[%clk 0:02:22.8]} 23. Ke2 {[%clk 0:02:07.8]} 23...
Kf8 {[%clk 0:02:17.5]} 24. Rac1 {[%clk 0:02:05.5]} 24... Ke7 {[%clk 0:02:15.6]}
25. f3 {[%clk 0:01:44.7]} 25... dxc4 {[%clk 0:01:50.7]} 26. Nxc4 {[%clk
0:01:33.1]} 26... Nd5 {[%clk 0:01:50.5]} 27. Kf2 {[%clk 0:01:03.2]} 27... b5
{[%clk 0:01:40.5]} 28. axb5 {[%clk 0:01:04.1]} 28... axb5 {[%clk 0:01:40.7]} 29.
Ne5 {[%clk 0:01:04.7]} 29... Nb4 {[%clk 0:01:33.1]} 30. Rxc8 {[%clk 0:00:58]}
30... Rxc8 {[%clk 0:01:24.2]} 31. Rd7+ {[%clk 0:00:57.8]} 31... Kf6 {[%clk
0:01:24.5]} 32. f4 {[%clk 0:00:58.2]} 32... Rf8 {[%clk 0:01:19.8]} 33. Rb7
{[%clk 0:00:58.1]} 33... g5 {[%clk 0:01:16.2]} 34. Rxb5 {[%clk 0:00:55]} 34...
gxf4 {[%clk 0:01:15.2]} 35. exf4 {[%clk 0:00:54.5]} 35... Nd5 {[%clk 0:01:15]}
36. g3 {[%clk 0:00:52.1]} 36... Kf5 {[%clk 0:01:13.6]} 37. Kf3 {[%clk
0:00:44.1]} 37... h5 {[%clk 0:01:12.9]} 38. h3 {[%clk 0:00:43.6]} 38... Rc8
{[%clk 0:01:11.7]} 39. g4+ {[%clk 0:00:41.3]} 39... hxg4+ {[%clk 0:01:11.8]} 40.
hxg4+ {[%clk 0:00:42.2]} 40... Kf6 {[%clk 0:01:12.5]} 41. Rb7 {[%clk 0:00:42.6]}
41... Rc3+ {[%clk 0:01:11.5]} 42. Ke4 {[%clk 0:00:39.3]} 42... Kg7 {[%clk
0:01:06.5]} 43. Rxf7+ {[%clk 0:00:39.3]} 43... Kg8 {[%clk 0:01:07]} 44. Rb7
{[%clk 0:00:35.4]} 44... Re3+ {[%clk 0:01:03.4]} 45. Kd4 {[%clk 0:00:35.3]}
45... Rg3 {[%clk 0:01:03.3]} 46. f5 {[%clk 0:00:34.6]} 46... exf5 {[%clk
0:00:57.7]} 47. Kxd5 {[%clk 0:00:30.9]} 47... fxg4 {[%clk 0:00:57.9]} 48. Ke4
{[%clk 0:00:28.9]} 48... Rg1 {[%clk 0:00:57.4]} 49. b4 {[%clk 0:00:26.3]} 49...
g3 {[%clk 0:00:57.2]} 50. Nf3 {[%clk 0:00:25]} 50... Rb1 {[%clk 0:00:56.1]} 51.
Kf4 {[%clk 0:00:14.8]} 51... g2 {[%clk 0:00:55.6]} 52. Kg3 {[%clk 0:00:15.2]}
52... g1=Q+ {[%clk 0:00:53.7]} 53. Nxg1 {[%clk 0:00:15.6]} 53... Rxg1+ {[%clk
0:00:54]} 54. Kf2 {[%clk 0:00:16.5]} 54... Rb1 {[%clk 0:00:54.1]} 55. Ke3 {[%clk
0:00:16.5]} 55... Kf8 {[%clk 0:00:54.6]} 56. Kd4 {[%clk 0:00:16.6]} 56... Ke8
{[%clk 0:00:55.2]} 57. Kc5 {[%clk 0:00:16.9]} 57... Kd8 {[%clk 0:00:55.7]} 58.
b5 {[%clk 0:00:14.8]} 58... Kc8 {[%clk 0:00:54.7]} 59. Rh7 {[%clk 0:00:14.9]}
59... Rg1 {[%clk 0:00:53.7]} 60. Rh8+ {[%clk 0:00:12.6]} 60... Kb7 {[%clk
0:00:52.8]} 61. Rh7+ {[%clk 0:00:13.5]} 61... Kb8 {[%clk 0:00:52.8]} 62. Kb4
{[%clk 0:00:14.1]} 62... Rg6 {[%clk 0:00:51.4]} 63. Ka5 {[%clk 0:00:14.4]} 63...
Rg1 {[%clk 0:00:50.8]} 64. Ka6 {[%clk 0:00:14]} 64... Rg6+ {[%clk 0:00:48.7]}
65. b6 {[%clk 0:00:14.2]} 65... Rg8 {[%clk 0:00:45.7]} 66. Rb7+ {[%clk 0:00:14]}
66... Ka8 {[%clk 0:00:45.3]} 67. Ra7+ {[%clk 0:00:08.5]} 67... Kb8 {[%clk
0:00:44.9]} 68. Rb7+ {[%clk 0:00:02.2]} 68... Ka8 {[%clk 0:00:45]} 69. Re7
{[%clk 0:00:03]} 69... Rh8 {[%clk 0:00:44.4]} 70. Rf7 {[%clk 0:00:03.4]} 70...
Rg8 {[%clk 0:00:44.6]} 71. Re7 {[%clk 0:00:03.4]} 71... Rd8 {[%clk 0:00:42.8]}
72. Ra7+ {[%clk 0:00:03.6]} 72... Kb8 {[%clk 0:00:42.3]} 73. Rf7 {[%clk
0:00:04.5]} 73... Rh8 {[%clk 0:00:41.6]} 74. Re7 {[%clk 0:00:02.4]} 74... Rg8
{[%clk 0:00:40.9]} 75. Rb7+ {[%clk 0:00:03.3]} 1/2-1/2